bitfinex-derivatives/quotes_BTCF0:USTF0_20241226
["timestamp","ask_amount","ask_price","bid_price","bid_amount"]
[1735244885826,0.07656207,95640.0,95611.0,0.24222191]
[1735244886031,0.052333,95632.0,95611.0,0.24222191]
[1735244886740,0.001,95631.0,95611.0,0.24222191]
[1735244887030,0.001,95631.0,95629.0,0.052334]
[1735244887423,0.052333,95632.0,95629.0,0.052334]
[1735244887623,0.052334,95631.0,95629.0,0.052334]
[1735244888228,0.053334,95631.0,95629.0,0.052334]
[1735244889425,0.052335,95629.0,95624.0,0.052337]
[1735244889626,0.001,95631.0,95611.0,0.24222191]
[1735244889822,0.052335,95628.0,95627.0,0.052336]
[1735244890027,0.001,95631.0,95612.0,0.052344]
[1735244890325,0.001,95631.0,95628.0,0.052335]
[1735244890634,0.052333,95632.0,95628.0,0.052335]
[1735244890836,0.052334,95631.0,95628.0,0.052335]
[1735244891032,0.052334,95630.0,95628.0,0.052335]
[1735244892323,0.052334,95630.0,95612.0,0.056344]
[1735244892324,0.052334,95630.0,95629.0,0.052335]
[1735244893129,0.053334,95630.0,95629.0,0.052335]
[1735244894431,0.10431482,95640.0,95624.0,0.052337]
[1735244894632,0.001,95630.0,95611.0,0.02867791]
[1735244894832,0.052347,95607.0,95604.0,0.052348]
[1735244895034,0.052348,95605.0,95599.0,0.052351]
[1735244895233,0.052349,95602.0,95599.0,0.052351]
[1735244895436,0.052349,95602.0,95589.0,0.052356]
[1735244895628,0.052349,95602.0,95585.0,0.1868186]
[1735244895629,0.052349,95602.0,95591.0,0.052355]
[1735244895936,0.052349,95602.0,95592.0,0.052355]
[1735244896327,0.052349,95602.0,95579.0,0.0282823]
[1735244896532,0.052349,95602.0,95594.0,0.052354]
[1735244896728,0.052349,95602.0,95601.0,0.0065689]
[1735244896925,0.3139,95620.0,95601.0,0.0065689]
[1735244897127,0.3139,95620.0,95610.0,0.052345]
[1735244897128,0.052345,95611.0,95610.0,0.052345]
[1735244897327,0.052342,95617.0,95611.0,0.052344]
[1735244897537,0.052342,95617.0,95601.0,0.0075689]
[1735244897832,0.052333,95633.0,95609.0,0.052345]
[1735244898028,0.1463,95639.0,95626.0,0.052336]
[1735244898338,0.052335,95628.0,95626.0,0.052336]
[1735244898839,0.052338,95623.0,95617.0,0.052341]
[1735244899034,0.052338,95624.0,95617.0,0.052341]
[1735244899236,0.052338,95624.0,95619.0,0.05234]
[1735244899441,0.052338,95624.0,95607.0,0.052346]
[1735244899632,0.052338,95624.0,95620.0,0.052339]
[1735244899934,0.003,95628.0,95625.0,0.052337]
[1735244900236,0.1463,95639.0,95625.0,0.052337]
[1735244900237,0.052335,95629.0,95625.0,0.052337]
[1735244900833,0.052335,95628.0,95625.0,0.052337]
[1735244901234,0.052336,95627.0,95625.0,0.052337]
[1735244902427,0.052337,95625.0,95619.0,0.05234]
[1735244902623,0.052337,95625.0,95613.0,0.1524]
[1735244903240,0.052337,95625.0,95615.0,0.052342]
[1735244903435,0.052337,95625.0,95620.0,0.052339]
[1735244903634,0.003,95627.0,95621.0,0.052339]
[1735244903938,0.003,95627.0,95618.0,0.05234]
[1735244903939,0.052339,95621.0,95618.0,0.05234]
[1735244905239,0.07656207,95630.0,95613.0,0.004]
[1735244905433,0.052337,95625.0,95619.0,0.05234]
[1735244906137,0.10491782,95630.0,95619.0,0.05234]
[1735244906547,0.052338,95623.0,95619.0,0.05234]
[1735244906945,0.10491782,95630.0,95607.0,0.1868186]
[1735244907146,0.07656207,95617.0,95607.0,0.1868186]
[1735244907346,0.052344,95612.0,95609.0,0.052346]
[1735244907745,0.07656207,95617.0,95608.0,0.1868186]
[1735244907746,0.052346,95609.0,95608.0,0.1868186]
[1735244908450,0.052343,95615.0,95612.0,0.052344]
[1735244909334,0.052343,95614.0,95612.0,0.052344]
[1735244909937,0.052344,95612.0,95609.0,0.001]
[1735244910351,0.052344,95612.0,95608.0,0.052346]
[1735244910743,0.052345,95611.0,95608.0,0.052346]
[1735244911042,0.052345,95611.0,95592.0,0.1868186]
[1735244911348,0.052342,95616.0,95609.0,0.001]
[1735244912048,0.052343,95614.0,95609.0,0.001]
[1735244912744,0.07656207,95617.0,95609.0,0.001]
[1735244913152,0.052345,95611.0,95609.0,0.053345]
[1735244913650,0.052345,95611.0,95609.0,0.054345]
[1735244913851,0.07656207,95617.0,95609.0,0.001]
[1735244914054,0.052343,95614.0,95611.0,0.052344]
[1735244914256,0.052343,95614.0,95612.0,0.052344]
[1735244914440,0.07656207,95617.0,95609.0,0.002]
[1735244914741,0.052345,95611.0,95609.0,0.002]
[1735244917153,0.052345,95610.0,95609.0,0.002]
[1735244917644,0.052345,95610.0,95609.0,0.001]
[1735244917847,0.052353,95597.0,95594.0,0.1868186]
[1735244918037,0.052352,95598.0,95594.0,0.1868186]
[1735244919038,0.052352,95598.0,95593.0,0.052354]
[1735244919342,0.052352,95598.0,95594.0,0.007]
[1735244919541,0.052352,95598.0,95594.0,0.059354]
[1735244920256,0.052352,95597.0,95594.0,0.059354]
[1735244920454,0.052352,95597.0,95596.0,0.052353]
[1735244922552,0.1588,95603.0,95594.0,0.01]
[1735244922752,0.052353,95595.0,95594.0,0.01]
[1735244922951,0.052353,95595.0,95594.0,0.007]
[1735244923156,0.1586,95602.0,95579.0,0.1541]
[1735244923352,0.07656207,95600.0,95596.0,0.005]
[1735244923553,0.052352,95597.0,95596.0,0.005]
[1735244923845,0.052352,95597.0,95584.0,0.052359]
[1735244923846,0.05235,95601.0,95594.0,0.005]
[1735244924049,0.052353,95595.0,95594.0,0.005]
[1735244924945,0.02477473,95603.0,95594.0,0.005]
[1735244925262,0.052342,95616.0,95615.0,0.052342]
[1735244925567,0.05391045,95618.0,95614.0,0.052342]
[1735244925855,0.12374924,95639.0,95617.0,0.052341]
[1735244926063,0.052328,95641.0,95620.0,0.07656207]
[1735244926248,0.1539,95648.0,95630.0,0.07656207]
[1735244926444,0.1539,95648.0,95631.0,0.1552]
[1735244926658,0.052328,95642.0,95636.0,0.05233]
[1735244926859,0.1539,95648.0,95636.0,0.05233]
[1735244927262,0.001,95641.0,95636.0,0.05233]
[1735244927662,0.001,95641.0,95631.0,0.13453]
[1735244927850,0.05233,95638.0,95636.0,0.05233]
[1735244928660,0.07756207,95641.0,95620.0,0.018]
[1735244928855,0.16,95640.0,95605.0,0.152]
[1735244929050,0.05234,95619.0,95613.0,0.052343]
[1735244929357,0.07656207,95623.0,95607.0,0.052346]
[1735244929558,0.07656207,95630.0,95607.0,0.052346]
[1735244929862,0.07656207,95630.0,95605.0,0.152]
[1735244929863,0.052344,95612.0,95605.0,0.152]
[1735244930053,0.052344,95612.0,95605.0,0.161]
[1735244930255,0.052345,95611.0,95605.0,0.161]
[1735244930458,0.052345,95610.0,95607.0,0.001]
[1735244930959,0.052346,95609.0,95607.0,0.001]
[1735244932855,0.052346,95609.0,95593.0,0.052354]
[1735244932856,0.052352,95597.0,95596.0,0.37355632]
[1735244933049,0.052352,95597.0,95596.0,0.02171632]
[1735244933761,0.052346,95609.0,95593.0,0.052354]
[1735244933762,0.052353,95596.0,95593.0,0.052354]
[1735244934061,0.052353,95596.0,95594.0,0.052354]
[1735244936568,0.052353,95596.0,95594.0,0.054354]
[1735244937160,0.052353,95596.0,95594.0,0.055354]
[1735244937362,0.052353,95596.0,95594.0,0.003]
[1735244938960,0.052353,95596.0,95594.0,0.053354]
[1735244939271,0.052353,95596.0,95594.0,0.055354]
[1735244939857,0.052353,95596.0,95594.0,0.054354]
[1735244940058,0.052353,95596.0,95594.0,0.055354]
[1735244941263,0.052353,95596.0,95594.0,0.003]
[1735244941951,0.052353,95596.0,95594.0,0.001]
[1735244942160,0.052353,95596.0,95595.0,0.052353]
[1735244942560,0.052347,95607.0,95606.0,0.052346]
[1735244943258,0.1523,95622.0,95597.0,0.07656207]
[1735244943460,0.052341,95618.0,95616.0,0.052342]
[1735244944867,0.056341,95618.0,95616.0,0.052342]
[1735244945462,0.052341,95618.0,95616.0,0.052342]
[1735244945662,0.056341,95618.0,95616.0,0.052342]
[1735244946365,0.057341,95618.0,95616.0,0.052342]
[1735244946961,0.056341,95618.0,95616.0,0.052342]
[1735244947275,0.052341,95617.0,95616.0,0.052342]
[1735244948168,0.052345,95611.0,95610.0,0.052345]
[1735244949665,0.053345,95611.0,95610.0,0.052345]
[1735244949969,0.001,95611.0,95610.0,0.052345]
[1735244959282,0.1623,95628.0,95627.0,0.052336]
[1735244960777,0.1663,95628.0,95627.0,0.053336]
[1735244961669,0.1693,95628.0,95627.0,0.053336]
[1735244962680,0.1693,95628.0,95619.0,0.032676]
[1735244962976,0.1693,95628.0,95627.0,0.052336]
[1735244964476,0.1653,95628.0,95627.0,0.053336]
[1735244964671,0.1683,95628.0,95627.0,0.053336]
[1735244964872,0.1653,95628.0,95627.0,0.053336]
[1735244965180,0.1673,95628.0,95627.0,0.053336]
[1735244965677,0.1653,95628.0,95627.0,0.053336]
[1735244965976,0.220635,95628.0,95627.0,0.053336]
[1735244968882,0.18955943,95628.0,95617.0,0.02184973]
[1735244969086,0.052336,95626.0,95625.0,0.052336]
[1735244971087,0.18955943,95628.0,95617.0,0.02133539]
[1735244971390,0.18955943,95628.0,95627.0,0.052336]
[1735244971577,0.18655943,95628.0,95627.0,0.052336]
[1735244971779,0.18755943,95628.0,95627.0,0.052336]
[1735244972486,0.18655943,95628.0,95627.0,0.052336]
[1735244972684,0.18655943,95628.0,95625.0,0.001]
[1735244972983,0.48655943,95628.0,95598.0,0.1868186]
[1735244973185,0.052342,95615.0,95599.0,0.00100094]
[1735244973386,0.2782,95614.0,95599.0,0.00100094]
[1735244973585,0.2782,95614.0,95613.0,0.052343]
[1735244974089,0.2782,95614.0,95613.0,0.05334394]
[1735244974479,0.052338,95623.0,95613.0,0.05334394]
[1735244974480,0.052338,95623.0,95622.0,0.052338]
[1735244975987,0.054338,95623.0,95622.0,0.052338]
[1735244976483,0.061338,95623.0,95622.0,0.053338]
[1735244978681,0.061338,95623.0,95622.0,0.001]
[1735244986194,0.309,95623.0,95613.0,0.00100094]
[1735244986492,0.052353,95595.0,95594.0,0.00156903]
[1735244987491,0.052358,95586.0,95585.0,0.1868186]
[1735244987997,0.052353,95595.0,95580.0,0.052361]
[1735244987998,0.052359,95584.0,95580.0,0.052361]
[1735244988201,0.052359,95584.0,95580.0,0.07220777]
[1735244988400,0.4064,95603.0,95574.0,0.1323]
[1735244988597,0.052361,95581.0,95579.0,0.052362]
[1735244988793,0.05236,95584.0,95578.0,0.052363]
[1735244989098,0.052361,95581.0,95578.0,0.052363]
[1735244989299,0.052361,95581.0,95580.0,0.004]
[1735244989799,0.052361,95581.0,95580.0,0.056361]
[1735244990004,0.052361,95581.0,95580.0,0.052361]
[1735244990185,0.052361,95581.0,95580.0,0.060361]
[1735244990798,0.052361,95581.0,95580.0,0.056361]
[1735244991895,0.052361,95581.0,95580.0,0.058361]
[1735244995908,0.052361,95581.0,95580.0,0.006]
[1735244999099,0.052361,95581.0,95580.0,0.007]
[1735244999910,0.052361,95581.0,95580.0,0.003]
[1735245000106,0.052361,95581.0,95580.0,0.008]
[1735245000508,0.052361,95581.0,95580.0,0.003]
[1735245000710,0.052361,95581.0,95580.0,0.006]
[1735245001104,0.052361,95581.0,95580.0,0.003]
[1735245001398,0.052361,95581.0,95580.0,0.005]
[1735245001708,0.052361,95581.0,95580.0,0.003]
[1735245001904,0.052361,95581.0,95580.0,0.001]
[1735245002106,0.052361,95581.0,95580.0,0.002]
[1735245003711,0.454761,95581.0,95580.0,0.002]
[1735245004408,0.455761,95581.0,95580.0,0.001]
[1735245005113,0.053361,95581.0,95580.0,0.001]
[1735245005297,0.4062,95607.0,95571.0,0.1334]
[1735245005497,0.4062,95607.0,95591.0,0.052355]
[1735245005703,0.4062,95607.0,95590.0,0.07656207]
[1735245005704,0.4236512,95607.0,95580.0,0.07656207]
[1735245006006,0.052352,95597.0,95573.0,0.3]
[1735245006208,0.052352,95597.0,95596.0,0.052353]
[1735245007410,0.05235,95601.0,95580.0,0.07656207]
[1735245007607,0.006,95597.0,95584.0,0.052359]
[1735245007816,0.052343,95614.0,95580.0,0.07656207]
[1735245007817,0.052345,95611.0,95607.0,0.052347]
[1735245008110,0.052342,95617.0,95607.0,0.052347]
[1735245009016,0.052342,95616.0,95607.0,0.052347]
[1735245010603,0.00356949,95608.0,95607.0,0.053347]
[1735245011003,0.00756949,95608.0,95607.0,0.053347]
[1735245012716,0.01784139,95627.0,95607.0,0.053347]
[1735245012912,0.05234,95620.0,95619.0,0.052339]
[1735245014220,0.05434,95620.0,95619.0,0.052339]
[1735245014807,0.05234,95620.0,95619.0,0.053339]
[1735245015009,0.05234,95620.0,95619.0,0.054339]
[1735245018117,0.05234,95620.0,95619.0,0.002]
[1735245020306,0.05234,95620.0,95619.0,0.001]
[1735245020512,0.05234,95620.0,95619.0,0.002]
[1735245021014,0.05234,95620.0,95619.0,0.001]
[1735245021308,0.052346,95608.0,95606.0,0.052347]
[1735245021911,0.052347,95607.0,95606.0,0.052347]
[1735245023416,0.052347,95607.0,95606.0,0.055347]
[1735245023921,0.052347,95607.0,95606.0,0.052347]
[1735245024117,0.052347,95607.0,95606.0,0.055347]
[1735245024317,0.052342,95617.0,95616.0,0.052342]
[1735245024523,0.052323,95651.0,95607.0,0.07656207]
[1735245024717,0.052331,95637.0,95620.0,0.07656207]
[1735245024918,0.052328,95641.0,95637.0,0.05233]
[1735245025217,0.052325,95647.0,95637.0,0.05233]
[1735245027114,0.052325,95647.0,95637.0,0.07003411]
[1735245027321,0.00356903,95638.0,95637.0,0.07103411]
[1735245027818,0.00356903,95638.0,95630.0,0.12463411]
[1735245028019,0.00356903,95638.0,95637.0,0.05233]
[1735245028416,0.17656207,95700.0,95637.0,0.05233]
[1735245028612,0.052318,95660.0,95659.0,0.052318]
[1735245028926,0.052315,95665.0,95664.0,0.052315]
[1735245029518,0.3,95665.0,95630.0,0.14368236]
[1735245029820,0.052325,95648.0,95646.0,0.052325]
[1735245030425,0.07756207,95660.0,95642.0,0.052327]
[1735245030613,0.07656207,95650.0,95643.0,0.052327]
[1735245030809,0.052326,95644.0,95643.0,0.052327]
[1735245031020,0.001,95648.0,95643.0,0.052327]
[1735245032425,0.052325,95648.0,95643.0,0.052327]
[1735245032621,0.07656207,95653.0,95630.0,0.00156844]
[1735245032821,0.052329,95639.0,95635.0,0.052331]
[1735245033020,0.1285,95638.0,95635.0,0.052331]
[1735245034021,0.1285,95638.0,95623.0,0.01729644]
[1735245034022,0.1285,95638.0,95630.0,0.002]
[1735245034327,0.052326,95646.0,95636.0,0.052331]
[1735245034519,0.180826,95646.0,95643.0,0.052327]
[1735245034719,0.052326,95644.0,95643.0,0.052327]
[1735245035919,0.052328,95641.0,95640.0,0.052328]
[1735245038024,0.053328,95641.0,95640.0,0.052328]
[1735245038724,0.053328,95641.0,95613.0,0.00156872]
[1735245038725,0.052331,95635.0,95634.0,0.052332]
[1735245040426,0.052329,95639.0,95637.0,0.05233]
[1735245040615,0.1285,95646.0,95637.0,0.05233]
[1735245040820,0.05233,95638.0,95637.0,0.05233]
[1735245041128,0.052331,95636.0,95634.0,0.001]
[1735245041429,0.052331,95636.0,95634.0,0.002]
[1735245042231,0.1285,95646.0,95634.0,0.002]
[1735245042427,0.052331,95635.0,95634.0,0.002]
[1735245042827,0.052331,95635.0,95634.0,0.001]
[1735245043425,0.052331,95635.0,95634.0,0.002]
[1735245043630,0.052331,95635.0,95634.0,0.001]
[1735245044023,0.052331,95635.0,95632.0,0.052333]
[1735245044227,0.052311,95673.0,95644.0,0.052325]
[1735245044536,0.052318,95659.0,95654.0,0.052321]
[1735245046223,0.02168228,95665.0,95654.0,0.052321]
[1735245046430,0.052319,95658.0,95654.0,0.052321]
[1735245046630,0.00256872,95655.0,95654.0,0.053321]
[1735245046829,0.05488872,95655.0,95654.0,0.053321]
[1735245047437,0.00256872,95655.0,95654.0,0.053321]
[1735245047629,0.00256872,95655.0,95646.0,0.105721]
[1735245047829,0.00256872,95655.0,95654.0,0.052321]
[1735245048525,0.00356872,95655.0,95654.0,0.052321]
[1735245052628,0.00356872,95655.0,95650.0,0.00144488]
[1735245052830,0.00356872,95655.0,95646.0,0.105721]
[1735245053133,0.00356872,95655.0,95654.0,0.052321]
[1735245055138,0.00456872,95655.0,95654.0,0.052321]
[1735245056236,0.00656872,95655.0,95654.0,0.053321]
[1735245056635,0.00356872,95655.0,95654.0,0.053321]
[1735245056847,0.00456872,95655.0,95654.0,0.052321]
[1735245066338,0.00456872,95655.0,95631.0,0.052333]
[1735245066536,0.07656207,95650.0,95647.0,0.052325]
[1735245066731,0.2654,95654.0,95649.0,0.052324]
[1735245067238,0.2654,95654.0,95633.0,0.29933199]
[1735245067544,0.052326,95646.0,95633.0,0.30233199]
[1735245067745,0.052326,95645.0,95644.0,0.052326]
[1735245068450,0.052323,95651.0,95650.0,0.052322]
[1735245070247,0.054323,95651.0,95650.0,0.052322]
[1735245071451,0.052323,95651.0,95650.0,0.052322]
[1735245071747,0.053323,95651.0,95650.0,0.052322]
[1735245072650,0.052323,95651.0,95650.0,0.052322]
[1735245072849,0.053323,95651.0,95650.0,0.052322]
[1735245074353,0.054323,95651.0,95650.0,0.052322]
[1735245075545,0.052323,95651.0,95650.0,0.052322]
[1735245075746,0.054323,95651.0,95650.0,0.052322]
[1735245077247,0.054323,95651.0,95638.0,0.02766156]
[1735245077447,0.054323,95651.0,95650.0,0.052323]
[1735245077646,0.052323,95651.0,95650.0,0.052323]
[1735245077846,0.054323,95651.0,95650.0,0.052323]
[1735245078249,0.052323,95651.0,95650.0,0.052323]
[1735245078857,0.054323,95651.0,95650.0,0.052323]
[1735245079054,0.002,95651.0,95650.0,0.052323]
[1735245079446,0.00156872,95655.0,95654.0,0.052321]
[1735245079645,0.00156872,95655.0,95652.0,0.052322]
[1735245079646,0.052322,95653.0,95652.0,0.052322]
[1735245081454,0.00156872,95655.0,95654.0,0.052321]
[1735245082646,0.05488872,95655.0,95654.0,0.052321]
[1735245084555,0.052326,95646.0,95645.0,0.052325]
[1735245084761,0.052323,95651.0,95650.0,0.052323]
[1735245087362,0.052323,95651.0,95650.0,0.053323]
[1735245087764,0.052323,95651.0,95650.0,0.052323]
[1735245088156,0.052323,95651.0,95650.0,0.053323]
[1735245091259,0.00156872,95655.0,95654.0,0.052321]
[1735245091768,0.00156872,95655.0,95650.0,0.001]
[1735245092065,0.00156872,95655.0,95654.0,0.052321]
[1735245093573,0.00256872,95655.0,95654.0,0.052321]
[1735245096468,0.00156872,95655.0,95654.0,0.052321]
[1735245096765,0.00256872,95655.0,95654.0,0.052321]
[1735245096965,0.05488872,95655.0,95654.0,0.052321]
[1735245097159,0.00256872,95655.0,95630.0,0.1868186]
[1735245097366,0.00256872,95655.0,95632.0,0.052333]
[1735245097367,0.052325,95648.0,95632.0,0.052333]
[1735245097562,0.00256872,95655.0,95631.0,0.1868186]
[1735245097563,0.052332,95635.0,95634.0,0.052332]
[1735245097973,0.052333,95632.0,95631.0,0.1868186]
[1735245098766,0.13,95634.0,95611.0,0.0008]
[1735245098767,0.052334,95631.0,95611.0,0.0008]
[1735245098970,0.07656207,95630.0,95606.0,0.1868186]
[1735245099170,0.07656207,95630.0,95618.0,0.05234]
[1735245099370,0.05234,95619.0,95618.0,0.05234]
[1735245100471,0.052343,95614.0,95613.0,0.006]
[1735245100770,0.052343,95614.0,95613.0,0.058343]
[1735245101566,0.052343,95614.0,95613.0,0.052343]
[1735245102973,0.052343,95614.0,95613.0,0.057343]
[1735245103960,0.1311,95627.0,95613.0,0.057343]
[1735245104171,0.052334,95630.0,95629.0,0.052334]
[1735245104970,0.07656207,95640.0,95613.0,0.066343]
[1735245104971,0.001,95614.0,95613.0,0.066343]
[1735245105173,0.052331,95635.0,95613.0,0.066343]
[1735245105174,0.052331,95635.0,95634.0,0.052332]
[1735245106371,0.052331,95635.0,95634.0,0.054332]
[1735245107167,0.052331,95635.0,95634.0,0.002]
[1735245107780,0.052331,95635.0,95634.0,0.007]
[1735245108782,0.052331,95635.0,95634.0,0.006]
[1735245108981,0.052331,95635.0,95634.0,0.004]
[1735245110372,0.052331,95635.0,95634.0,0.001]
[1735245110573,0.052331,95635.0,95634.0,0.003]
[1735245111895,0.052331,95635.0,95634.0,0.001]
[1735245112087,0.052331,95635.0,95634.0,0.002]
[1735245113873,0.052331,95635.0,95634.0,0.001]
[1735245114073,0.052341,95618.0,95616.0,0.052342]
[1735245115176,0.052341,95618.0,95616.0,0.059342]
[1735245115372,0.001,95635.0,95616.0,0.007]
[1735245115577,0.052346,95618.0,95617.0,0.052346]
[1735245115983,0.052346,95617.0,95616.0,0.01]
[1735245116670,0.052346,95617.0,95616.0,0.003]
[1735245117175,0.052346,95617.0,95614.0,0.03403426]
[1735245117176,0.052347,95615.0,95614.0,0.03403426]
[1735245117369,0.052348,95614.0,95613.0,0.052349]
[1735245118571,0.052348,95614.0,95613.0,0.055349]
[1735245118771,0.052348,95614.0,95613.0,0.062349]
[1735245119075,0.052348,95614.0,95613.0,0.01]
[1735245119976,0.052348,95614.0,95613.0,0.007]
[1735245120173,0.052348,95614.0,95613.0,0.01]
[1735245120775,0.052355,95601.0,95593.0,0.00156899]
[1735245121090,0.052359,95594.0,95593.0,0.05392799]
[1735245121282,0.03003064,95620.0,95593.0,0.05392799]
[1735245121283,0.03003064,95620.0,95593.0,0.30156899]
[1735245121485,0.052348,95614.0,95613.0,0.058346]
[1735245121787,0.052348,95614.0,95613.0,0.006]
[1735245122883,0.2556,95625.0,95612.0,0.052349]
[1735245123086,0.052349,95613.0,95612.0,0.052349]
[1735245124090,0.07656207,95622.0,95593.0,0.03183731]
[1735245124279,0.052349,95613.0,95612.0,0.003]
[1735245124486,0.052349,95613.0,95612.0,0.004]
[1735245125179,0.052349,95613.0,95612.0,0.003]
[1735245125687,0.052359,95594.0,95593.0,0.005]
[1735245126389,0.052359,95594.0,95593.0,0.014]
[1735245126775,0.052359,95594.0,95593.0,0.005]
[1735245127089,0.052359,95594.0,95593.0,0.008]
[1735245127278,0.0015695,95640.0,95586.0,0.03033481]
[1735245127595,0.05234,95629.0,95627.0,0.05234]
[1735245128091,0.052337,95635.0,95631.0,0.052339]
[1735245128290,0.052338,95632.0,95619.0,0.07656207]
[1735245128493,0.052339,95631.0,95616.0,0.052347]
[1735245128786,0.004,95629.0,95626.0,0.052341]
[1735245129692,0.052344,95622.0,95612.0,0.052349]
[1735245129893,0.052344,95622.0,95600.0,0.07656207]
[1735245130191,0.07656207,95630.0,95602.0,0.052355]
[1735245130390,0.052341,95628.0,95626.0,0.001]
[1735245130783,0.052341,95628.0,95624.0,0.052342]
[1735245131391,0.052341,95628.0,95625.0,0.052342]
[1735245131991,0.052343,95623.0,95606.0,0.052352]
[1735245132189,0.052343,95623.0,95621.0,0.052344]
[1735245133984,0.053343,95623.0,95621.0,0.052344]
[1735245134186,0.057343,95623.0,95621.0,0.052344]
[1735245135190,0.005,95623.0,95621.0,0.052344]
[1735245136394,0.0015695,95640.0,95639.0,0.052334]
[1735245137696,0.0095695,95640.0,95628.0,0.05234]
[1735245137991,0.0095695,95640.0,95639.0,0.059334]
[1735245138191,0.0095695,95640.0,95639.0,0.007]
[1735245138786,0.0075695,95640.0,95639.0,0.007]
[1735245140085,0.0095695,95640.0,95638.0,0.052335]
[1735245140296,0.0045695,95640.0,95639.0,0.001]
[1735245140891,0.0055695,95640.0,95639.0,0.001]
[1735245141691,0.004,95640.0,95639.0,0.001]
[1735245142498,0.001,95640.0,95639.0,0.002]
[1735245143198,0.052328,95651.0,95639.0,0.002]
[1735245143199,0.052328,95651.0,95649.0,0.052329]
[1735245143794,0.052331,95645.0,95643.0,0.052332]
[1735245143994,0.07656207,95653.0,95639.0,0.003]
[1735245144201,0.052333,95641.0,95639.0,0.001]
[1735245144406,0.1383,95640.0,95639.0,0.001]
[1735245145102,0.052335,95638.0,95622.0,0.052344]
[1735245145302,0.052341,95627.0,95622.0,0.052344]
[1735245145506,0.052341,95627.0,95616.0,0.03011592]
[1735245145507,0.052341,95627.0,95623.0,0.052343]
[1735245145694,0.07656207,95633.0,95623.0,0.052343]
[1735245145899,0.052341,95627.0,95625.0,0.052342]
[1735245147010,0.052341,95627.0,95625.0,0.055342]
[1735245148309,0.12890007,95633.0,95626.0,0.052341]
[1735245148511,0.052338,95633.0,95626.0,0.052341]
[1735245148699,0.052338,95632.0,95626.0,0.052341]
[1735245149411,0.1276,95637.0,95626.0,0.052341]
[1735245149600,0.1276,95637.0,95625.0,0.001]
[1735245149601,0.052341,95626.0,95625.0,0.001]
[1735245149811,0.052341,95626.0,95625.0,0.004]
[1735245150009,0.052354,95603.0,95573.0,0.35176]
[1735245150212,0.052354,95603.0,95599.0,0.052356]
[1735245150609,0.052354,95603.0,95585.0,0.03009811]
[1735245150815,0.07656207,95612.0,95603.0,0.052354]
[1735245151004,0.052353,95606.0,95603.0,0.052354]
[1735245152316,0.052353,95606.0,95603.0,0.055354]
[1735245152810,0.052353,95605.0,95603.0,0.055354]
[1735245153011,0.052353,95605.0,95603.0,0.003]
[1735245153210,0.1326,95604.0,95603.0,0.007]
[1735245153707,0.1326,95604.0,95603.0,0.006]
[1735245154711,0.1326,95604.0,95603.0,0.002]
[1735245154911,0.1326,95604.0,95603.0,0.006]
[1735245156820,0.1326,95604.0,95603.0,0.005]
[1735245157117,0.1326,95604.0,95603.0,0.003]
[1735245157822,0.052348,95615.0,95612.0,0.052349]
[1735245158323,0.05235,95611.0,95607.0,0.052352]
[1735245158520,0.05235,95611.0,95608.0,0.052351]
[1735245158816,0.05235,95611.0,95609.0,0.05235]
[1735245159609,0.05235,95611.0,95603.0,0.002]
[1735245159814,0.05235,95611.0,95610.0,0.05235]
[1735245160415,0.05335,95611.0,95610.0,0.05235]
[1735245160817,0.001,95611.0,95603.0,0.052354]
[1735245161122,0.05235,95611.0,95610.0,0.001]
[1735245162717,0.052351,95609.0,95604.0,0.052353]
[1735245163315,0.052351,95609.0,95605.0,0.052353]
[1735245163617,0.052351,95609.0,95606.0,0.052352]
[1735245163926,0.052352,95607.0,95606.0,0.052352]
[1735245164513,0.180346,95618.0,95605.0,0.052353]
[1735245164712,0.07656207,95630.0,95624.0,0.052343]
[1735245164922,0.052326,95655.0,95604.0,0.002]
[1735245164923,0.16463428,95637.0,95634.0,0.052337]
[1735245165121,0.052337,95635.0,95634.0,0.052337]
[1735245165621,0.135,95637.0,95610.0,0.07656207]
[1735245165919,0.135,95637.0,95635.0,0.052336]
[1735245166316,0.052336,95636.0,95635.0,0.052336]
[1735245166515,0.052336,95636.0,95618.0,0.052346]
[1735245166516,0.052338,95633.0,95630.0,0.052339]
[1735245167023,0.05234,95629.0,95613.0,0.052348]
[1735245167323,0.07656207,95630.0,95628.0,0.05234]
[1735245167524,0.052339,95632.0,95613.0,0.02970558]
[1735245167820,0.136,95637.0,95610.0,0.07656207]
[1735245168217,0.136,95637.0,95610.0,0.10249279]
[1735245168523,0.003,95630.0,95629.0,0.05234]
[1735245169025,0.007,95633.0,95610.0,0.10249279]
[1735245169224,0.007,95633.0,95632.0,0.052338]
[1735245169415,0.135,95637.0,95613.0,0.052348]
[1735245169723,0.135,95637.0,95636.0,0.052336]
[1735245170226,0.187335,95637.0,95636.0,0.052336]
[1735245171520,0.052335,95637.0,95636.0,0.052336]
[1735245171926,0.056335,95637.0,95636.0,0.052336]
[1735245172120,0.064335,95637.0,95636.0,0.053336]
[1735245172319,0.012,95637.0,95636.0,0.053336]
[1735245172727,0.012,95637.0,95630.0,0.00680189]
[1735245173025,0.012,95637.0,95627.0,0.4045]
[1735245173229,0.012,95637.0,95636.0,0.052336]
[1735245174124,0.008,95637.0,95636.0,0.052336]
[1735245174324,0.011,95637.0,95636.0,0.052336]
[1735245174728,0.003,95637.0,95636.0,0.052336]